Workbook

Sheet Sheet1
B2: A | H2: A` | N2: B | T2: C | Z2: D | AF2: BRAKES | AN2: A | AO2: A' | AP2: B | AQ2: C | AR2: D | AS2: BRAKES
B3: factory | C3: LEFT | D3: RIGHT | E3: left | F3: right | G3: symet | H3: factory | I3: LEFT | J3: RIGHT | K3: left | L3: right | M3: symet. | N3: factory | O3: LEFT | P3: RIGHT | Q3: left | R3: dir. | S3: symet | T3: factory | U3: LEFT | V3: RIGHT | W3: left | X3: dir. | Y3: symet | Z3: factory | AA3: LEFT | AB3: RIGHT | AC3: left. | AD3: right | AE3: symet | AF3: factory | AG3: LEFT | AH3: RIGHT | AI3: left. | AJ3: right | AK3: symet
A4: 1 | B4: =AN4+$M$19 -> 6946 | E4: =C4-B4 -> -6946 | F4: =D4-B4 -> -6946 | G4: =C4-D4 -> 0 | H4: =AO4+$M$19 -> 6886 | K4: =I4-H4 -> -6886 | L4: =J4-H4 -> -6886 | M4: =I4-J4 -> 0 | N4: =AP4+$M$19 -> 6816 | Q4: =O4-N4 -> -6816 | R4: =P4-N4 -> -6816 | S4: =O4-P4 -> 0 | T4: =AQ4+$M$19 -> 6906 | W4: =U4-T4 -> -6906 | X4: =V4-T4 -> -6906 | Y4: =U4-V4 -> 0 | Z4: =AR4+$M$19 -> 7008 | AC4: =AA4-Z4 -> -7008 | AD4: =AB4-Z4 -> -7008 | AE4: =AA4-AB4 -> 0 | AF4: 7011 | AI4: =AG4-AF4 -> -7011 | AJ4: =AH4-AF4 -> -7011 | AK4: =AG4-AH4 -> 0 | AN4: 6946 | AO4: 6886 | AP4: 6816 | AQ4: 6906 | AR4: 7008 | AS4: 7011 | AW4: 7434.65
A5: 2 | B5: 6919 | E5: =C5-B5 -> -6919 | F5: =D5-B5 -> -6919 | G5: =C5-D5 -> 0 | H5: 6854 | K5: =I5-H5 -> -6854 | L5: =J5-H5 -> -6854 | M5: 0 | N5: 6788 | Q5: =O5-N5 -> -6788 | R5: =P5-N5 -> -6788 | S5: =O5-P5 -> 0 | T5: =AQ5+$M$19 -> 6870 | W5: =U5-T5 -> -6870 | X5: =V5-T5 -> -6870 | Y5: =U5-V5 -> 0 | Z5: =AR5+$M$19 -> 6972 | AC5: =AA5-Z5 -> -6972 | AD5: =AB5-Z5 -> -6972 | AE5: =AA5-AB5 -> 0 | AF5: 6844 | AI5: =AG5-AF5 -> -6844 | AJ5: =AH5-AF5 -> -6844 | AK5: =AG5-AH5 -> 0 | AN5: 6919 | AO5: 6854 | AP5: 6788 | AQ5: 6870 | AR5: 6972 | AS5: 6844 | AW5: 7398.6
A6: 3 | B6: 6880 | E6: -6880 | F6: -6880 | G6: 0 | H6: 6816 | K6: -6816 | L6: -6816 | M6: 0 | N6: 6752 | Q6: -6752 | R6: -6752 | S6: 0 | T6: 6826 | W6: -6826 | X6: -6826 | Y6: 0 | Z6: =AR6+$M$19 -> 6923 | AC6: -6923 | AD6: -6923 | AE6: 0 | AF6: 6675 | AI6: -6675 | AJ6: -6675 | AK6: 0 | AN6: 6880 | AO6: 6816 | AP6: 6752 | AQ6: 6826 | AR6: 6923 | AS6: 6675 | AW6: 7346.35
A7: 4 | B7: 6895 | E7: -6895 | F7: -6895 | G7: 0 | H7: 6835 | K7: -6835 | L7: -6835 | M7: 0 | N7: 6771 | Q7: -6771 | R7: -6771 | S7: 0 | T7: 6845 | W7: -6845 | X7: -6845 | Y7: 0 | Z7: =AR7+$M$19 -> 6934 | AC7: -6934 | AD7: -6934 | AE7: 0 | AF7: 6742 | AI7: -6742 | AJ7: -6742 | AK7: 0 | AN7: 6895 | AO7: 6835 | AP7: 6771 | AQ7: 6845 | AR7: 6934 | AS7: 6742 | AW7: 7369.4
A8: 5 | B8: 6829 | E8: -6829 | F8: -6829 | G8: 0 | H8: 6774 | K8: -6774 | L8: -6774 | M8: 0 | N8: 6703 | Q8: -6703 | R8: -6703 | S8: 0 | T8: 6772 | W8: -6772 | X8: -6772 | Y8: 0 | Z8: =AR8+$M$19 -> 6864 | AC8: -6864 | AD8: -6864 | AE8: 0 | AF8: 6508 | AI8: -6508 | AJ8: -6508 | AK8: 0 | AN8: 6829 | AO8: 6774 | AP8: 6703 | AQ8: 6772 | AR8: 6864 | AS8: 6508 | AW8: 7290.15
A9: 6 | B9: 6785 | E9: -6785 | F9: -6785 | G9: 0 | H9: 6724 | K9: -6724 | L9: -6724 | M9: 0 | N9: 6658 | Q9: -6658 | R9: =P9-N9 -> -6658 | S9: =O9-P9 -> 0 | T9: 6720 | W9: -6720 | X9: =V9-T9 -> -6720 | Y9: =U9-V9 -> 0 | Z9: 6809 | AC9: -6809 | AD9: -6809 | AE9: 0 | AF9: 6409 | AI9: -6409 | AJ9: -6409 | AK9: 0 | AN9: 6785 | AO9: 6724 | AP9: 6658 | AQ9: 6720 | AR9: 6809 | AS9: 6409 | AW9: 7235
A10: 7 | B10: 6713 | E10: -6713 | F10: -6713 | G10: 0 | H10: 6656 | K10: -6656 | L10: -6656 | M10: 0 | N10: 6596 | Q10: -6596 | R10: =P10-N10 -> -6596 | S10: =O10-P10 -> 0 | T10: 6646 | W10: -6646 | X10: =V10-T10 -> -6646 | Y10: =U10-V10 -> 0 | Z10: 6730 | AC10: -6730 | AD10: -6730 | AE10: 0 | AF10: 6331 | AI10: -6331 | AJ10: -6331 | AK10: 0 | AN10: 6713 | AO10: 6656 | AP10: 6596 | AQ10: 6646 | AR10: 6730 | AS10: 6331 | AW10: 7151.9
A11: 8 | B11: 6714 | E11: -6714 | F11: -6714 | G11: 0 | H11: 6668 | K11: -6668 | L11: -6668 | M11: 0 | N11: 6604 | Q11: -6604 | R11: -6604 | S11: 0 | T11: 6647 | W11: -6647 | X11: =V11-T11 -> -6647 | Y11: =U11-V11 -> 0 | Z11: 6710 | AC11: -6710 | AD11: -6710 | AE11: 0 | AF11: 6388 | AI11: -6388 | AJ11: -6388 | AK11: 0 | AN11: 6714 | AO11: 6668 | AP11: 6604 | AQ11: 6647 | AR11: 6710 | AS11: 6388 | AW11: 7153.3
A12: 9 | B12: 6601 | E12: -6601 | F12: -6601 | G12: 0 | H12: 6550 | K12: -6550 | L12: -6550 | M12: 0 | N12: 6505 | Q12: -6505 | R12: -6505 | S12: 0 | T12: 6598 | W12: -6598 | X12: -6598 | Y12: 0 | AF12: 6266 | AI12: -6266 | AJ12: -6266 | AK12: 0 | AN12: 6601 | AO12: 6550 | AP12: 6505 | AQ12: 6598 | AS12: 6266 | AW12: 7109.6
A13: 10 | B13: 6429 | E13: -6429 | F13: -6429 | G13: 0 | H13: 6410 | K13: -6410 | L13: -6410 | M13: 0 | N13: 6352 | Q13: -6352 | R13: -6352 | S13: 0 | T13: 6450 | W13: -6450 | X13: -6450 | Y13: 0 | AF13: 6217 | AI13: -6217 | AJ13: -6217 | AK13: 0 | AN13: 6429 | AO13: 6410 | AP13: 6352 | AQ13: 6450 | AS13: 6217 | AW13: 6959.85
A14: 11 | B14: 6337 | E14: -6337 | F14: -6337 | G14: 0 | H14: 6303 | K14: -6303 | L14: -6303 | M14: 0 | N14: 6292 | Q14: -6292 | R14: -6292 | S14: 0 | T14: 6366 | W14: -6366 | X14: -6366 | Y14: 0 | AF14: 6202 | AI14: -6202 | AJ14: -6202 | AK14: 0 | AN14: 6337 | AO14: 6303 | AP14: 6292 | AQ14: 6366 | AS14: 6202 | AW14: 6867.65
A15: 12 | B15: 6123 | E15: -6123 | F15: -6123 | G15: 0 | N15: 6168 | Q15: -6168 | R15: -6168 | S15: 0 | T15: 6296 | W15: -6296 | X15: -6296 | Y15: 0 | AF15: 6286 | AI15: -6286 | AJ15: -6286 | AK15: 0 | AN15: 6123 | AP15: 6168 | AQ15: 6296 | AS15: 6286 | AW15: 6779.9
A16: 13 | B16: 6094 | E16: -6094 | F16: -6094 | G16: 0 | N16: 6183 | Q16: -6183 | R16: -6183 | S16: 0 | T16: 6285 | W16: -6285 | X16: -6285 | Y16: 0 | AN16: 6094 | AP16: 6183 | AQ16: 6285 | AW16: 6762.7
D18: RIGHT | H18: LEFT | M18: OFFSET
C19: A | D19: X | E19: X | F19: X | G19: X | H19: X | I19: X | J19: AS+ | K19: 30
C20: B | D20: X | E20: X | F20: X | G20: X | H20: X | I20: X | J20: AS | K20: 22
C21: C | D21: X | E21: X | F21: X | G21: X | H21: X | I21: X | J21: DL | K21: 15
S22: TRIM LEFT SIDE | V22: TRIM RIGHT SIDE
Q23: SECTION | S23: 3 | T23: 2 | U23: 1 | V23: 1 | W23: 2 | X23: 3
Q24: A average | S24: 0 | T24: 0 | U24: 0 | V24: 0 | W24: 0 | X24: 0
Q25: B average | S25: 0 | T25: 0 | U25: 0 | V25: 0 | W25: 0 | X25: 0
Q26: FINAL TRIM | S26: =S24-S25 -> 0 | T26: =T24-T25 -> 0 | U26: 0 | V26: 0 | W26: 0 | X26: =X24-X25 -> 0
AR30: 20
